fUST/lending_fUST_20240708
["ID","MTS","AMOUNT","RATE_DAILY","PERIOD"]
[331433833,1720403434275,-500.0,0.0006241,40]
[331433834,1720403434286,-500.0,0.0006241,40]
[331433835,1720403434296,-500.0,0.0006241,40]
[331433836,1720403434305,-500.0,0.0006241,40]
[331433837,1720403434315,-500.0,0.0006241,40]
[331433838,1720403434325,-500.0,0.0006241,40]
[331433839,1720403434335,-500.0,0.0006241,40]
[331433840,1720403434344,-500.0,0.0006241,40]
[331433841,1720403434355,-500.0,0.0006241,40]
[331433842,1720403434365,-365.9679478,0.0006241,40]
[331433843,1720403434375,-500.0,0.0006241,50]
[331433844,1720403434385,-500.0,0.0006241,50]
[331433845,1720403434394,-273.3430598,0.0006241,50]
[331433846,1720403434404,-500.0,0.00062411,120]
[331433847,1720403434414,-2055.81,0.00062411,120]
[331433848,1720403434424,-199.86987575,0.00062411,120]
[331433849,1720403434434,-220.99955798,0.00062412,8]
[331433850,1720403434443,-500.0,0.00062412,120]
[331433851,1720403434453,-1325.99734788,0.00062413,8]
[331433852,1720403434464,-500.0,0.00062418,120]
[331433853,1720403434474,-2055.81,0.00062418,120]
[331433854,1720403434483,-500.0,0.00062418,120]
[331433855,1720403434496,-500.0,0.00062418,120]
[331433856,1720403434506,-500.0,0.00062418,120]
[331433857,1720403434515,-407.7931202,0.00062418,120]
[331433858,1720403434525,-500.0,0.00062418,120]
[331433859,1720403434535,-500.0,0.00062418,120]
[331433860,1720403434544,-500.0,0.00062418,120]
[331433861,1720403434553,-378.30273673,0.00062418,120]
[331433862,1720403434563,-500.0,0.00062418,120]
[331433863,1720403434572,-500.0,0.00062418,120]
[331433864,1720403434582,-500.0,0.00062418,120]
[331433865,1720403434592,-500.0,0.00062418,120]
[331433866,1720403434601,-500.0,0.00062418,120]
[331433867,1720403434613,-500.0,0.00062418,120]
[331433868,1720403434622,-500.0,0.00062418,120]
[331433869,1720403434631,-500.0,0.00062418,120]
[331433870,1720403434641,-500.0,0.00062418,120]
[331433871,1720403434650,-500.0,0.00062418,120]
[331433872,1720403434660,-500.0,0.00062418,120]
[331433873,1720403434669,-422.33793605,0.00062418,120]
[331433874,1720403434679,-184.20368363,0.00062418,120]
[331433875,1720403434688,-894.06,0.00062418,120]
[331433876,1720403434698,-894.06,0.00062418,120]
[331433877,1720403434709,-50000.000001,0.00062419,30]
[331433878,1720403434719,-500.0,0.00062419,120]
[331433879,1720403434731,-2055.81,0.00062419,120]
[331433880,1720403434741,-516.00860824,0.00062419,120]
[331433881,1720403434750,-894.06,0.00062419,120]
[331433882,1720403434761,-50364.73513382,0.0006242,30]
[331433883,1720403434770,-500.0,0.00062421,120]
[331433884,1720403434780,-500.0,0.00062421,120]
[331433885,1720403434789,-2038.59972445,0.00062421,120]
[331433908,1720403438754,-17.21027555,0.00062421,120]
[331433909,1720403438766,-2055.81,0.00062421,120]
[331433910,1720403438775,-769.5080853,0.00062421,120]
[331433911,1720403438786,-894.06,0.00062421,120]
[331433912,1720403438795,-894.06,0.00062421,120]
[331433913,1720403438805,-500.0,0.00062422,120]
[331433914,1720403438815,-500.0,0.00062422,120]
[331433915,1720403438824,-500.0,0.00062422,120]
[331433916,1720403438926,-500.0,0.00062422,120]
[331433917,1720403438937,-500.0,0.00062422,120]
[331433918,1720403438948,-500.0,0.00062422,120]
[331433919,1720403438963,-527.75831696,0.00062422,120]
[331433920,1720403438972,-500.0,0.00062422,120]
[331433921,1720403438982,-500.0,0.00062422,120]
[331433922,1720403438991,-500.0,0.00062422,120]
[331433923,1720403439002,-500.0,0.00062422,120]
[331433924,1720403439011,-185.27036048,0.00062422,120]
[331433925,1720403439024,-314.72963952,0.00062422,120]
[331433926,1720403439034,-500.0,0.00062422,120]
[331433927,1720403439045,-500.0,0.00062422,120]
[331433928,1720403439055,-500.0,0.00062422,120]
[331433929,1720403439066,-500.0,0.00062422,120]
[331433930,1720403439076,-348.73906809,0.00062422,120]
[331433931,1720403439087,-2055.81,0.00062422,120]
[331433932,1720403439098,-2055.81,0.00062422,120]
[331433933,1720403439108,-2055.81,0.00062422,120]
[331433934,1720403439118,-964.05965487,0.00062422,120]
[331433960,1720403443848,-6871.16,0.00062413,3]
[331433961,1720403443858,-1091.75034513,0.00062422,120]
[331433963,1720403443867,-1522.79895212,0.00062422,120]
[331434001,1720403509553,286.64122418,0.00043834,4]
[331434002,1720403510234,245.20046817,0.00043834,4]
[331434003,1720403529065,1878.88174923,0.00043286,4]
[331434004,1720403620941,380.0,0.00037214,2]
[331434005,1720403651041,151.0,0.0004,120]
[331434006,1720403660057,14928.87809058,0.00039999,4]
[331434007,1720403660587,575.23849751,0.00037214,4]
[331434008,1720403665184,254.16390016,0.00037214,4]
[331434009,1720403670908,211.28411325,0.00037214,4]
[331434010,1720403677787,1025.97123647,0.00037214,4]
[331434011,1720403685304,151.0,0.0004,120]
[331434012,1720403687932,5621.64769119,0.00037214,4]
[331434014,1720403762797,834.75803599,0.00037214,4]
[331434015,1720403763605,389.42900816,0.00037214,4]
[331434016,1720403763684,158.3685245,0.00037214,4]
[331434017,1720403793601,1360.72483598,0.00039357,30]
[331434018,1720403827632,214.9633723,0.00038959,2]
[331434019,1720403837550,103.29752989,0.00021096,2]
[331434020,1720403837578,64.82702211,0.00021096,2]
[331434021,1720403837777,168.124552,0.00035582,2]
[331434023,1720403875051,159.921154,0.00038864,2]
[331434024,1720403878212,14928.87809058,0.00039999,4]
[331434031,1720403988995,167.628524,0.0003785,2]
[331434032,1720403989475,167.628524,0.0003957,2]
[331434033,1720404085294,2854.8087387,0.0003827,2]
[331434034,1720404101088,6488.18339461,0.00039999,4]
[331434036,1720404208573,170.79961542,0.0003,4]
[331434037,1720404267087,14928.87809058,0.00034999,4]
[331434038,1720404272482,315.1286507,0.0003,4]
[331434039,1720404301679,241.01267009,0.0003,2]
[331434041,1720404337127,-294.62444483,0.00036363,4]
[331434042,1720404337148,-157.96984909,0.00036363,4]
[331434043,1720404337170,-302.72681074,0.00036363,30]
[331434044,1720404337189,-41.79354617,0.00036363,2]
[331434045,1720404372455,172.947945,0.00021096,2]
[331434046,1720404384565,407.3492622,0.0003,3]
[331434047,1720404399750,2015.84551265,0.00033,120]
[331434049,1720404426611,6748.03825336,0.00034999,4]
[331434050,1720404426636,8180.83983722,0.00034999,4]
[331434051,1720404434105,-400.0,0.00035291,2]
[331434052,1720404434126,-400.0,0.00035291,2]
[331434053,1720404434146,-109.27,0.00035981,2]
[331434054,1720404435129,-52.9626981,0.00035981,2]
[331434055,1720404435154,-1501.50327782,0.00035999,2]
[331434056,1720404435174,-156.72112003,0.00036351,4]
[331434057,1720404435194,-155.58300829,0.00036351,4]
[331434058,1720404435214,-155.42805707,0.00036351,4]
[331434059,1720404435235,-909.27,0.00036363,4]
[331434060,1720404435254,-400.90044236,0.00036363,2]
[331434061,1720404447128,-742.75440298,0.00036239,30]
[331434062,1720404447150,-99.09955764,0.00036363,2]
[331434063,1720404447171,-212.80224341,0.00037899,21]
[331434064,1720404449119,-845.36684332,0.00037899,21]
[331434065,1720404449241,-1202.09800209,0.00038264,4]
[331434066,1720404449263,-818.80646176,0.00039177,4]
[331434067,1720404449284,-518.93724581,0.00039177,4]
[331434068,1720404449304,-250.53109566,0.000392,10]
[331434069,1720404449332,-844.9641902,0.00039999,4]
[331434070,1720404449352,-156.56418552,0.00039999,4]
[331434071,1720404449372,-154.46708854,0.0004,4]
[331434072,1720404449392,-151.0,0.0004,120]
[331434073,1720404449414,-151.0,0.0004,120]
[331434074,1720404449436,-435.0,0.00040229,2]
[331434075,1720404449456,-176.51217966,0.00040229,4]
[331434076,1720404449476,-293.40462591,0.00040278,4]
[331434077,1720404449496,-375.49562509,0.00040278,4]
[331434078,1720404449516,-4019.71380724,0.00040599,20]
[331434082,1720404555116,-1708.89772359,0.00038999,4]
[331434083,1720404555137,-4988.70281902,0.00039177,4]
[331434143,1720404632869,-1698.86538299,0.00039177,2]
[331434145,1720404632879,-284.48602988,0.00039177,3]
[331434147,1720404632888,-155.06564544,0.00039177,4]
[331434149,1720404632897,-5944.0833198,0.00039783,2]
[331434151,1720404632906,-155.10844789,0.00039994,4]
[331434153,1720404632915,-314.91495774,0.00039999,2]
[331434155,1720404632924,-154.46708854,0.00040599,4]
[331434157,1720404632933,-2207.91553816,0.00040599,20]
[331434159,1720404632943,-815.85780395,0.00042398,4]
[331434161,1720404632951,-151.0,0.00042767,120]
[331434163,1720404632960,-167.628524,0.00043488,2]
[331434164,1720404632969,-219.93570201,0.00043615,4]
[331434167,1720404632978,-151.0,0.00043836,120]
[331434169,1720404632987,-151.0,0.00045534,120]
[331434171,1720404632996,-157.59667048,0.00046234,30]
[331434172,1720404633009,-206.3072956,0.00046406,2]
[331434174,1720404633018,-153.0,0.00046406,2]
[331434176,1720404633027,-153.0,0.00046406,2]
[331434178,1720404633036,-153.0,0.00046406,2]
[331434180,1720404633046,-153.0,0.00046406,2]
[331434182,1720404633057,-352.1710651,0.00046406,2]
[331434184,1720404633066,-206.3072956,0.00046406,2]
[331434186,1720404633075,-153.0,0.00046406,2]
[331434188,1720404633084,-153.0,0.00046406,2]
[331434190,1720404633093,-206.3072956,0.00046406,2]
[331434192,1720404633102,-153.0,0.00046406,2]
[331434194,1720404633111,-206.3072956,0.00046406,2]
[331434196,1720404633120,-206.3072956,0.00046406,2]
[331434198,1720404633131,-153.0,0.00046406,2]
[331434200,1720404633144,-206.3072956,0.00046406,2]
[331434202,1720404633154,-192.072982,0.00046685,2]
[331434204,1720404633163,-206.3072956,0.00047228,2]
[331434206,1720404633173,-206.3072956,0.00047228,2]
[331434208,1720404633183,-205.6817803,0.00047228,2]
[331434210,1720404633193,-420.3252858,0.00047263,2]
[331434212,1720404633202,-151.0,0.00047671,120]
[331434221,1720404633212,-151.0,0.00048301,120]
[331434223,1720404633299,-157.59667048,0.0004835,30]
[331434225,1720404633308,-500.0,0.0004921,2]
[331434226,1720404633317,-167.628524,0.00049416,2]
[331434227,1720404633326,-165.77775781,0.000499,28]
[331434228,1720404633335,-154.46708854,0.0005,30]
[331434229,1720404633344,-533.81299865,0.0005,30]
[331434230,1720404633353,-203.6907867,0.0005,120]
[331434231,1720404633363,-168.124552,0.00050068,2]
[331434232,1720404633372,-172.947945,0.00050068,2]
[331434233,1720404633381,-157.59667048,0.0005059,60]
[331434234,1720404633391,-683.0,0.00050844,30]
[331434235,1720404633400,-150.0,0.00051,85]
[331434236,1720404633409,-151.0,0.00051068,120]
[331434237,1720404633418,-151.0,0.00051507,120]
[331434238,1720404633427,-157.59667048,0.0005336,60]
[331434239,1720404633436,-683.0,0.0005352,30]
[331434240,1720404633446,-151.0,0.00053836,120]
[331434241,1720404633455,-500.0,0.00054794,120]
[331434242,1720404633465,-500.0,0.00054794,120]
[331434243,1720404633474,-500.0,0.00054794,7]
[331434244,1720404633483,-500.0,0.00054794,120]
[331434245,1720404633493,-500.0,0.00054794,120]
[331434246,1720404633503,-500.0,0.00054794,7]
[331434247,1720404633517,-350.31235613,0.00054794,120]
[331434248,1720404633526,-500.0,0.00054794,7]
[331434249,1720404633536,-500.0,0.00054794,120]
[331434250,1720404633545,-500.0,0.00054794,7]
[331434251,1720404633554,-500.0,0.00054794,120]
[331434252,1720404633564,-244.21042628,0.00054794,7]
[331434253,1720404633574,-500.0,0.00054794,120]
[331434254,1720404633583,-430.52109189,0.00054794,120]
[331434255,1720404633592,-481.41090466,0.00054794,120]
[331434256,1720404633601,-500.0,0.00054795,120]
[331434257,1720404633611,-500.0,0.00054795,120]
[331434258,1720404633620,-500.0,0.00054795,120]
[331434259,1720404633629,-500.0,0.00054795,120]
[331434260,1720404633638,-500.0,0.00054795,120]
[331434261,1720404633648,-500.0,0.00054795,120]
[331434262,1720404633657,-500.0,0.00054795,120]
[331434263,1720404633667,-500.0,0.00054795,120]
[331434264,1720404633676,-500.0,0.00054795,120]
[331434265,1720404633685,-500.0,0.00054795,120]
[331434266,1720404633694,-500.0,0.00054795,120]
[331434267,1720404633703,-500.0,0.00054795,120]
[331434268,1720404633713,-187.75643068,0.00054795,120]
[331434269,1720404633722,-500.0,0.00054795,120]
[331434270,1720404633732,-500.0,0.00054795,120]
[331434271,1720404633741,-500.0,0.00054795,120]
[331434272,1720404633751,-500.0,0.00054795,120]
[331434273,1720404633762,-500.0,0.00054795,120]
[331434274,1720404633772,-500.0,0.00054795,120]
[331434275,1720404633781,-500.0,0.00054795,120]
[331434276,1720404633790,-500.0,0.00054795,120]
[331434277,1720404633800,-500.0,0.00054795,120]
[331434278,1720404633809,-500.0,0.00054795,120]
[331434279,1720404633819,-500.0,0.00054795,120]
[331434280,1720404633829,-151.0,0.00055342,120]
[331434281,1720404633839,-157.59667048,0.00055565,120]
[331434282,1720404633848,-683.0,0.00056337,120]
[331434283,1720404633858,-151.0,0.00056603,120]
[331434284,1720404633867,-1216.197,0.00057916,120]
[331434285,1720404633876,-157.59667051,0.00057931,120]
[331434286,1720404633885,-151.85,0.00058965,120]
[331434287,1720404633895,-151.0,0.00059178,120]
[331434288,1720404633905,-683.0,0.00059302,120]
[331434289,1720404633915,-151.0,0.0005937,120]
[331434290,1720404633924,-4976.9635584,0.00059679,120]
[331434291,1720404633934,-4976.9635584,0.00059789,120]
[331434292,1720404633943,-905.98,0.0006,120]
[331434293,1720404633954,-4976.9635584,0.00060163,120]
[331434294,1720404633964,-500.0,0.00060273,120]
[331434295,1720404633974,-7006.45,0.00060273,120]
[331434296,1720404633984,-1811.48,0.00060273,120]
[331434297,1720404633995,-500.0,0.00060273,120]
[331434298,1720404634005,-506.93604909,0.00060273,120]
[331434299,1720404634015,-500.0,0.00060273,120]
[331434300,1720404634025,-1377.87,0.00060273,120]
[331434301,1720404634035,-633.28004618,0.00060273,120]
[331434302,1720404634045,-782.28,0.00060273,120]
[331434303,1720404634055,-2610.45,0.00060273,120]
[331434304,1720404634065,-4976.9635584,0.00060301,120]
[331434305,1720404634074,-462.53,0.00060723,30]
[331434306,1720404634083,-11686.66,0.00060723,3]
[331434307,1720404634093,-4976.9635584,0.00060733,120]
[331434308,1720404634102,-8899.6328,0.00061,120]
[331434309,1720404634112,-14023.99,0.00061056,3]
[331434310,1720404634122,-16828.78,0.00061066,3]
[331434311,1720404634138,-4976.9635584,0.00061076,120]
[331434312,1720404634147,-500.0,0.00061257,120]
[331434313,1720404634156,-7006.45,0.00061257,120]
[331434314,1720404634166,-1811.48,0.00061257,120]
[331434315,1720404634178,-564.60346803,0.00061257,120]
[331434316,1720404634188,-500.0,0.00061257,120]
[331434317,1720404634198,-1377.87,0.00061257,120]
[331434318,1720404634207,-782.28,0.00061257,120]
[331434319,1720404634218,-2610.45,0.00061257,120]
[331434320,1720404634229,-4976.9635584,0.00061275,120]
[331434321,1720404634238,-1535.60938027,0.00061289,2]
[331434322,1720404634248,-500.0,0.00061302,120]
[331434323,1720404634263,-1073.39,0.00061302,120]
[331434324,1720404634273,-500.0,0.00061302,120]
[331434325,1720404634282,-505.04248659,0.00061302,120]
[331434326,1720404634291,-509.06145503,0.00061302,120]
[331434327,1720404634301,-500.0,0.00061302,120]
[331434328,1720404634310,-500.0,0.00061302,120]
[331434329,1720404634319,-552.98,0.00061302,120]
[331434330,1720404634329,-500.0,0.00061302,120]
[331434331,1720404634338,-500.0,0.00061302,120]
[331434332,1720404634348,-500.0,0.00061302,120]
[331434333,1720404634358,-500.0,0.00061302,120]
[331434334,1720404634367,-513.58861862,0.00061302,120]
[331434335,1720404634377,-500.0,0.00061302,120]
[331434336,1720404634387,-500.0,0.00061302,120]
[331434337,1720404634397,-500.0,0.00061302,120]
[331434338,1720404634406,-500.0,0.00061302,2]
[331434339,1720404634415,-517.8799069,0.00061302,120]
[331434340,1720404634424,-521.97593703,0.00061302,120]
[331434341,1720404634434,-511.33486168,0.00061302,120]
[331434342,1720404634443,-1520.27010147,0.00061359,8]
[331434343,1720404634453,-4976.9635584,0.00061387,120]
[331434344,1720404634463,-1520.27010147,0.00061389,8]
[331434345,1720404634473,-500.0,0.00061389,120]
[331434346,1720404634482,-7006.45,0.00061389,120]
[331434347,1720404634491,-1811.48,0.00061389,120]
[331434348,1720404634501,-500.0,0.00061389,120]
[331434349,1720404634514,-1377.87,0.00061389,120]
[331434350,1720404634523,-782.28,0.00061389,120]
[331434351,1720404634533,-2610.45,0.00061389,120]
[331434352,1720404634542,-503.94287051,0.00061399,120]
[331434353,1720404634552,-378.396,0.00061399,120]
[331434354,1720404634562,-5606.57,0.00061399,120]
[331434355,1720404634572,-898.42,0.00061399,120]
[331434356,1720404634582,-500.0,0.00061399,120]
[331434357,1720404634592,-500.0,0.00061399,120]
[331434358,1720404634601,-7006.45,0.00061399,120]
[331434359,1720404634611,-1811.48,0.00061399,120]
[331434360,1720404634620,-500.0,0.00061399,120]
[331434361,1720404634629,-1377.87,0.00061399,120]
[331434362,1720404634639,-2610.45,0.00061399,120]
[331434363,1720404634649,-782.28,0.00061399,120]
[331434364,1720404634658,-2000.0,0.000614,120]
[331434365,1720404634668,-2000.0,0.000614,120]
[331434366,1720404634678,-2000.0,0.000614,120]
[331434367,1720404634688,-2000.0,0.000614,120]
[331434368,1720404634697,-2000.0,0.000614,120]
[331434369,1720404634708,-2000.0,0.000614,120]
[331434370,1720404634717,-2000.0,0.000614,120]
[331434371,1720404634727,-2000.0,0.000614,120]
[331434372,1720404634737,-2000.0,0.000614,120]
[331434373,1720404634747,-2000.0,0.000614,120]
[331434374,1720404634758,-2000.0,0.000614,120]
[331434375,1720404634767,-28119.0,0.000614,120]
[331434376,1720404634777,-1535.60938026,0.00061547,2]
[331434377,1720404634786,-2000.0,0.0006174,30]
[331434378,1720404634796,-3000.0,0.000618,120]
[331434379,1720404634806,-1535.60938026,0.00061806,2]
[331434380,1720404634815,-4976.9635584,0.00061855,120]
[331434381,1720404634825,-2136.82,0.00062,120]
[331434382,1720404634834,-500.0,0.0006203,120]
[331434383,1720404634843,-503.53201359,0.0006203,120]
[331434384,1720404634853,-508.12966006,0.0006203,120]
[331434385,1720404634862,-500.0,0.0006203,120]
[331434386,1720404634872,-519.09897114,0.0006203,120]
[331434387,1720404634881,-500.0,0.0006203,120]
[331434388,1720404634890,-500.0,0.0006203,120]
[331434389,1720404634899,-500.0,0.0006203,120]
[331434390,1720404634909,-1535.60938026,0.00062064,2]
[331434391,1720404634918,-151.0,0.00062137,120]
[331434392,1720404634927,-1520.27010147,0.00062161,8]
[331434393,1720404634937,-154.609012,0.00062161,120]
[331434394,1720404634946,-4976.9635584,0.00062166,120]
[331434395,1720404634955,-3040.54020294,0.00062312,8]
[331434396,1720404634964,-2000.0,0.00062319,120]
[331434397,1720404634974,-500.0,0.0006232,120]
[331434398,1720404634983,-7006.45,0.0006232,120]
[331434399,1720404634993,-1811.48,0.0006232,120]
[331434400,1720404635002,-500.0,0.0006232,120]
[331434401,1720404635012,-1377.87,0.0006232,120]
[331434402,1720404635022,-782.28,0.0006232,120]
[331434403,1720404635031,-2610.45,0.0006232,120]
[331434404,1720404635040,-500.0,0.00062321,120]
[331434405,1720404635049,-500.0,0.00062321,120]
[331434406,1720404635058,-500.0,0.00062321,120]
[331434407,1720404635068,-500.0,0.00062321,120]
[331434408,1720404635077,-1073.39,0.00062321,120]
[331434409,1720404635087,-1073.39,0.00062321,120]
[331434410,1720404635096,-521.3190759,0.00062321,120]
[331434411,1720404635105,-619.25024894,0.00062321,120]
[331434412,1720404635114,-552.98,0.00062321,120]
[331434413,1720404635123,-552.98,0.00062321,120]
[331434414,1720404635138,-500.03312415,0.00062321,120]
[331434415,1720404635147,-500.0,0.00062321,120]
[331434416,1720404635156,-500.0,0.00062321,120]
[331434417,1720404635166,-500.0,0.00062321,120]
[331434418,1720404635176,-500.0,0.00062321,120]
[331434419,1720404635186,-600.0,0.00062321,120]
[331434420,1720404635195,-500.0,0.00062321,120]
[331434421,1720404635271,-327.64704332,0.00062321,120]
[331434422,1720404635281,-500.0,0.00062321,120]
[331434423,1720404635291,-500.0,0.00062321,120]
[331434424,1720404635301,-502.28887701,0.00062321,120]
[331434425,1720404635310,-5606.57,0.00062321,120]
[331434426,1720404635319,-5606.57,0.00062321,120]
[331434427,1720404635329,-898.42,0.00062321,120]
[331434428,1720404635338,-898.42,0.00062321,120]
[331434429,1720404635347,-502.24798972,0.00062321,120]
[331434430,1720404635356,-500.0,0.00062321,120]
[331434431,1720404635366,-500.0,0.00062321,120]
[331434432,1720404635375,-296.46814856,0.00062321,120]
[331434433,1720404635384,-228.68230034,0.00062321,120]
[331434434,1720404635394,-500.0,0.00062321,120]
[331434435,1720404635403,-500.0,0.00062321,120]
[331434436,1720404635413,-7006.45,0.00062321,120]
[331434437,1720404635422,-7006.45,0.00062321,120]
[331434438,1720404635432,-1811.48,0.00062321,120]
[331434439,1720404635441,-1811.48,0.00062321,120]
[331434440,1720404635450,-500.0,0.00062321,120]
[331434441,1720404635460,-500.0,0.00062321,120]
[331434442,1720404635470,-500.0,0.00062321,120]
[331434443,1720404635479,-500.0,0.00062321,120]
[331434444,1720404635489,-500.0,0.00062321,2]
[331434445,1720404635498,-500.0,0.00062321,2]
[331434446,1720404635510,-1377.87,0.00062321,120]
[331434447,1720404635519,-1377.87,0.00062321,120]
[331434448,1720404635528,-782.28,0.00062321,120]
[331434449,1720404635537,-2610.45,0.00062321,120]
[331434450,1720404635546,-782.28,0.00062321,120]
[331434451,1720404635555,-2610.45,0.00062321,120]
[331434452,1720404635564,-151.0,0.00062322,120]
[331434453,1720404635574,-400.119876,0.00062322,120]
[331434454,1720404635583,-400.119876,0.00062322,120]
[331434455,1720404635593,-6447.403868,0.00062322,120]
[331434456,1720404635603,-6447.403868,0.00062322,120]
[331434457,1720404635612,-1535.60938026,0.00062322,2]
[331434458,1720404635622,-78004.34638349,0.00062322,120]
[331434459,1720404635631,-382.0,0.000624,40]
[331434460,1720404635640,-150.0,0.000624,60]
[331434461,1720404635649,-150.0,0.000624,60]
[331434462,1720404635659,-157.0,0.0006241,82]
[331434463,1720404635668,-1520.27010147,0.0006241,8]
[331434464,1720404635677,-1520.27010147,0.00062411,8]
[331434465,1720404635687,-7601.35050735,0.00062412,8]
[331434466,1720404635697,-1520.27010147,0.00062413,8]
[331434467,1720404635706,-500.0,0.00062419,120]
[331434468,1720404635715,-7006.45,0.00062419,120]
[331434469,1720404635724,-1811.48,0.00062419,120]
[331434470,1720404635733,-500.0,0.00062419,120]
[331434471,1720404635743,-1377.87,0.00062419,120]
[331434472,1720404635752,-782.28,0.00062419,120]
[331434473,1720404635763,-2610.45,0.00062419,120]
[331434474,1720404635772,-8561.24744512,0.0006242,61]
[331434475,1720404635781,-4367.41798269,0.0006242,30]
[331434476,1720404635790,-500.0,0.0006242,120]
[331434477,1720404635799,-1073.39,0.0006242,120]
[331434478,1720404635809,-552.98,0.0006242,120]
[331434479,1720404635818,-210.00739599,0.0006242,120]
[331434480,1720404635828,-504.26616509,0.0006242,120]
[331434481,1720404635837,-500.0,0.0006242,120]
[331434482,1720404635848,-5606.57,0.0006242,120]
[331434483,1720404635857,-898.42,0.0006242,120]
[331434484,1720404635867,-500.0,0.0006242,120]
[331434485,1720404635876,-500.0,0.0006242,120]
[331434486,1720404635885,-5768.40287196,0.0006242,120]
[331434516,1720404639017,-14928.87809058,0.00035615,4]
[331434518,1720404639030,-515.74910299,0.00061302,120]
[331434519,1720404639043,-500.0,0.00061302,10]
[331434520,1720404639054,-512.85753286,0.00061302,120]
[331434521,1720404639069,-477.30253371,0.00061739,31]
[331434522,1720404639081,-584.62982817,0.00061739,120]
[331434523,1720404639094,-500.0,0.00061739,120]
[331434524,1720404639105,-500.0,0.00061739,120]
[331434526,1720404639118,-181.0019726,0.00061739,120]
[331434528,1720404639132,-499.4730412,0.00061739,120]
[331434530,1720404639147,-323.94581585,0.00061739,120]
[331434531,1720404639160,-559.80367682,0.00061739,120]
[331434532,1720404639172,-457.62239831,0.00061739,120]
[331434533,1720404639186,-500.0,0.00061739,120]
[331434534,1720404639198,-500.0,0.00061739,120]
[331434535,1720404639213,-559.80367682,0.00061739,120]
[331434536,1720404639227,-559.80367682,0.00061739,120]
[331434537,1720404639240,-563.49082102,0.00061739,120]
[331434538,1720404639251,-559.80367682,0.00061739,120]
[331434539,1720404639265,-559.80367682,0.00061739,120]
[331434540,1720404639275,-559.80367682,0.00061739,120]
[331434541,1720404639286,-559.80367682,0.00061739,120]
[331434542,1720404639297,-559.80367682,0.00061739,120]
[331434543,1720404639308,-559.80367682,0.00061739,120]
[331434544,1720404639321,-559.80367682,0.00061739,120]
[331434545,1720404639332,-559.80367682,0.00061739,120]
[331434546,1720404639345,-559.80367682,0.00061739,120]
[331434547,1720404639358,-559.80367682,0.00061739,120]
[331434548,1720404639369,-559.80367682,0.00061739,120]
[331434549,1720404639380,-559.80367682,0.00061739,120]
[331434550,1720404639391,-559.80367682,0.00061739,120]
[331434551,1720404639402,-559.80367682,0.00061739,120]
[331434552,1720404639415,-559.80367682,0.00061739,120]
[331434553,1720404639425,-559.80367682,0.00061739,120]
[331434554,1720404639437,-559.80367682,0.00061739,120]
[331434555,1720404639450,-559.80367682,0.00061739,120]
[331434556,1720404639461,-559.80367682,0.00061739,120]
[331434557,1720404639472,-559.80367682,0.00061739,120]
[331434558,1720404639484,-559.80367682,0.00061739,120]
[331434559,1720404639495,-559.80367682,0.00061739,120]
[331434560,1720404639509,-559.80367682,0.00061739,120]
[331434561,1720404639521,-559.80367682,0.00061739,120]
[331434562,1720404639532,-559.80367682,0.00061739,120]
[331434563,1720404639543,-559.80367682,0.00061739,120]
[331434564,1720404639554,-500.0,0.00061739,120]
[331434565,1720404639565,-559.80367682,0.00061739,120]
[331434566,1720404639576,-559.80367682,0.00061739,120]
[331434567,1720404639588,-559.80367682,0.00061739,120]